[Event "Haarlemse Meesters 2019"]
[Site "Haarlem"]
[Date "2019.10.27"]
[Round "9.5"]
[White "Welling, Gerard"]
[Black "Lahaye, Rick"]
[Result "0-1"]
[ECO "D02"]
[WhiteElo "2302"]
[BlackElo "2414"]
[Annotator "NA"]
[PlyCount "108"]
[EventDate "2019.10.19"]
[EventType "tourn"]
[EventCountry "NED"]
[SourceTitle "playchess.com"]
[Source "ChessBase"]
[SourceQuality "1"]
[TimeControl "40/5400+30:1800+30"]

1. d4 {[%emt 0:00:00]} d5 {[%emt 0:00:00]} 2. Nf3 {[%emt 0:00:00]} c6 {[%emt 0:00:00]} 3. Bf4 {[%emt 0:01:58]} Bf5 {[%emt 0:03:13]} 4. e3 {[%emt 0:01:00]} Nd7 {[%emt 0:01:10]} 5. Nbd2 {[%emt 0:03:45]} e6 {[%emt 0:00:38]} 6. Be2 {[%emt 0:00:59]} Be7 {[%emt 0:00:31]} 7. h3 {[%emt 0:00:46]} g5 {[%emt 0:01:41]} 8. Bg3 {[%emt 0:00:18]} h5 {[%emt 0:00:46]} 9. c4 {[%emt 0:01:59]} Nh6 {[%emt 0:13:45]} 10. Qb3 {[%emt 0:04:59]} Qc8 {[%emt 0:03:16]} 11. h4 {[%emt 0:07:27]} g4 {[%emt 0:01:44]} 12. Ne5 {[%emt 0:01:04]} f6 {[%emt 0:04:33] [#]} (12... Bh7 $11) 13. Nxd7 {[%emt 0:00:33]} (13. Nd3 $1 $16) 13... Qxd7 {[%emt 0:00:23]} 14. Bf4 {[%emt 0:03:53]} Nf7 {[%emt 0:01:23]} 15. cxd5 {[%emt 0:02:56]} exd5 {[%emt 0:00:46]} 16. Bd3 $11 {[%emt 0:02:45]} O-O-O {[%emt 0:01:21]} 17. O-O-O {[%emt 0:10:23]} Bd6 {[%emt 0:00:25]} 18. Bxd6 {[%emt 0:01:20]} Nxd6 {[%emt 0:00:06]} 19. g3 {[%emt 0:00:41]} Qh7 {[%emt 0:00:56]} 20. Bxf5+ {[%emt 0:01:10]} Qxf5 {[%emt 0:01:09]} 21. Rhf1 {[%emt 0:00:05]} Kb8 {[%emt 0:00:47]} 22. Qc2 {[%emt 0:00:06]} Qe6 {[%emt 0:01:03]} 23. Kb1 {[%emt 0:00:06]} Rc8 {[%emt 0:00:40]} 24. Rc1 {[%emt 0:00:34]} f5 {[%emt 0:01:04]} 25. Qd3 {[%emt 0:01:14]} Rh7 {[%emt 0:02:52]} 26. Rc2 {[%emt 0:00:10]} Ne4 {[%emt 0:06:31]} 27. Nb3 {[%emt 0:01:18]} b6 {[%emt 0:00:23]} 28. Nc1 {[%emt 0:01:30]} f4 {[%emt 0:05:38]} 29. exf4 {[%emt 0:01:22]} Qf5 {[%emt 0:00:28]} 30. Ka1 {[%emt 0:01:06]} Re7 {[%emt 0:00:23]} 31. Qa3 {[%emt 0:09:25]} c5 {[%emt 0:06:34]} 32. Nd3 {[%emt 0:02:04]} Rec7 {[%emt 0:00:19]} 33. Rfc1 {[%emt 0:02:17]} c4 {[%emt 0:01:38]} 34. Ne5 {[%emt 0:02:30]} Kb7 {[%emt 0:01:09]} 35. b4 {[%emt 0:05:57]} Qf8 {[%emt 0:04:15]} 36. Qa4 {[%emt 0:03:10]} a6 {[%emt 0:01:21]} 37. b5 {[%emt 0:00:23]} a5 {[%emt 0:01:12]} 38. a3 {[%emt 0:01:35]} c3 {[%emt 0:08:15]} 39. Nc6 {[%emt 0:07:51]} Rxc6 {[%emt 0:00:16]} 40. bxc6+ {[%emt 0:00:07]} Rxc6 {[%emt 0:00:03]} 41. Qb3 {[%emt 0:31:03]} Nd2 {[%emt 0:50:31]} 42. Qa2 {[%emt 0:01:28]} Qe7 {[%emt 0:00:00]} 43. Rxc3 {[%emt 0:00:00]} Rxc3 {[%emt 0:00:00]} 44. Rxc3 {[%emt 0:00:00]} Qe1+ {[%emt 0:00:00]} 45. Kb2 {[%emt 0:00:00]} Qe4 {[%emt 0:00:00]} 46. Kc1 {[%emt 0:00:00]} Qe1+ {[%emt 0:00:00]} 47. Kb2 {[%emt 0:00:00]} Nc4+ {[%emt 0:02:20]} 48. Rxc4 {[%emt 0:00:00]} dxc4 {[%emt 0:00:05]} 49. Qxc4 {[%emt 0:00:00]} Qxf2+ {[%emt 0:00:05]} 50. Kc1 {[%emt 0:00:00]} Qxg3 {[%emt 0:00:04]} 51. Qf7+ {[%emt 0:00:00]} Kc6 {[%emt 0:00:33]} 52. Qe6+ {[%emt 0:00:00]} Kb5 {[%emt 0:00:12]} 53. Kb2 {[%emt 0:00:00]} Qg2+ {[%emt 0:02:09]} 54. Kc3 {[%emt 0:00:29]} Qc6+ {[%emt 0:01:53]} 0-1